[Event "WYCC U14 Open 2019"]
[Site "Mumbai"]
[Date "2019.10.12"]
[Round "11.12"]
[White "Davtyan, Arsen"]
[Black "Aaryan Varshney"]
[Result "1/2-1/2"]
[ECO "B52"]
[WhiteElo "1942"]
[BlackElo "2239"]
[Annotator "ChessBase"]
[PlyCount "61"]
[EventDate "2019.10.02"]
[EventType "swiss"]
[EventCountry "IND"]
[SourceTitle "playchess.com"]
[Source "ChessBase"]
[SourceQuality "1"]
[TimeControl "40/5400+30:1800+30"]

1. e4 {[%emt 0:00:00]} c5 {[%emt 0:00:00]} 2. Nf3 {[%emt 0:00:00]} d6 {[%emt 0:00:00]} 3. Bb5+ {[%emt 0:00:00]} Bd7 {[%emt 0:00:02]} 4. Bxd7+ {[%emt 0:00:00]} Qxd7 {[%emt 0:00:06]} 5. O-O {[%emt 0:00:02]} Nc6 {[%emt 0:00:14]} 6. c3 {[%emt 0:00:13]} Nf6 {[%emt 0:00:09]} 7. d4 {[%emt 0:00:16]} cxd4 {[%emt 0:01:05]} 8. cxd4 {[%emt 0:00:07]} Nxe4 {[%emt 0:09:21]} 9. d5 {[%emt 0:00:22]} Ne5 {[%emt 0:00:15]} 10. Re1 {[%emt 0:00:12]} Nf6 {[%emt 0:00:32]} 11. Nxe5 {[%emt 0:12:45]} dxe5 {[%emt 0:00:28]} 12. Rxe5 {[%emt 0:01:26]} e6 {[%emt 0:00:39]} 13. Nc3 {[%emt 0:01:21]} Bd6 {[%emt 0:02:41]} 14. dxe6 {[%emt 0:04:03]} fxe6 {[%emt 0:01:31]} 15. Re1 {[%emt 0:00:38]} O-O {[%emt 0:00:43]} 16. Qe2 {[%emt 0:04:39]} Rae8 {[%emt 0:03:11]} 17. Be3 {[%emt 0:06:23]} Nd5 {[%emt 0:05:20]} 18. Nxd5 {[%emt 0:05:38]} exd5 {[%emt 0:00:44]} 19. Qd3 {[%emt 0:01:56]} Bb8 {[%emt 0:02:56]} 20. Rad1 {[%emt 0:02:42]} Re5 {[%emt 0:02:24]} 21. g3 {[%emt 0:11:39]} Rfe8 {[%emt 0:07:02]} 22. Rd2 {[%emt 0:06:16]} h5 {[%emt 0:09:43]} 23. Red1 {[%emt 0:10:18]} h4 {[%emt 0:00:40]} 24. Qb3 {[%emt 0:20:06]} hxg3 {[%emt 0:03:37]} 25. hxg3 {[%emt 0:00:41]} Qh3 {[%emt 0:02:41]} 26. Rxd5 {[%emt 0:00:55]} Rxe3 {[%emt 0:00:28]} 27. fxe3 {[%emt 0:00:37]} Qxg3+ {[%emt 0:00:36]} 28. Kf1 {[%emt 0:00:08]} Qf3+ {[%emt 0:09:46]} 29. Kg1 {[%emt 0:00:07]} Qg4+ {[%emt 0:12:55]} 30. Kf1 {[%emt 0:01:02]} Qf3+ {[%emt 0:11:13]} 31. Kg1 {[%emt 0:00:09]} 1/2-1/2

[Event "WYCC U14 Open 2019"]
[Site "Mumbai"]
[Date "2019.10.12"]
[Round "11.13"]
[White "Gokhale Rishabh Chandrashekhar"]
[Black "Flores Quillas, Diego Saul Rodri"]
[Result "0-1"]
[ECO "A04"]
[WhiteElo "1925"]
[BlackElo "2164"]
[Annotator "ChessBase"]
[PlyCount "140"]
[EventDate "2019.10.02"]
[EventType "swiss"]
[EventCountry "IND"]
[SourceTitle "playchess.com"]
[Source "ChessBase"]
[SourceQuality "1"]
[TimeControl "40/5400+30:1800+30"]

1. Nf3 {[%emt 0:00:00]} c5 {[%emt 0:00:00]} 2. b3 {[%emt 0:00:12]} Nf6 {[%emt 0:07:34]} 3. Bb2 {[%emt 0:00:09]} e6 {[%emt 0:00:05]} 4. g3 {[%emt 0:01:56]} d5 {[%emt 0:00:35]} 5. Bg2 {[%emt 0:01:02]} Bd6 {[%emt 0:00:33]} 6. d3 {[%emt 0:02:37]} Nc6 {[%emt 0:10:27]} 7. Nbd2 {[%emt 0:02:49]} O-O {[%emt 0:08:26]} 8. O-O {[%emt 0:02:52]} e5 {[%emt 0:01:07]} 9. e4 {[%emt 0:02:22]} Re8 {[%emt 0:02:16]} 10. Re1 Bc7 {[%emt 0:01:43]} 11. a4 {[%emt 0:16:32]} Rb8 {[%emt 0:03:12]} 12. h3 {[%emt 0:03:10]} b6 {[%emt 0:04:03]} 13. exd5 {[%emt 0:13:15]} Nxd5 {[%emt 0:00:04]} 14. Nc4 {[%emt 0:01:18]} f6 {[%emt 0:00:03]} 15. Nh4 {[%emt 0:04:28]} Be6 {[%emt 0:02:50]} 16. Ne3 {[%emt 0:14:57]} Nxe3 {[%emt 0:01:17]} 17. Rxe3 {[%emt 0:02:57]} Qd7 {[%emt 0:05:16]} 18. Kh2 {[%emt 0:04:30]} Nb4 {[%emt 0:03:33]} 19. Re2 {[%emt 0:06:48]} Rbd8 {[%emt 0:04:00]} 20. Nf3 {[%emt 0:02:51]} Bf7 {[%emt 0:03:13]} 21. Qf1 {[%emt 0:03:22]} a6 {[%emt 0:12:42]} 22. Rd2 {[%emt 0:02:06]} b5 {[%emt 0:03:58]} 23. axb5 {[%emt 0:00:32]} axb5 {[%emt 0:00:29]} 24. Ra7 {[%emt 0:01:14]} e4 {[%emt 0:03:51]} 25. dxe4 {[%emt 0:01:54]} Bxg3+ {[%emt 0:00:05]} 26. fxg3 {[%emt 0:00:22]} Qxa7 {[%emt 0:00:03]} 27. Qxb5 {[%emt 0:01:11]} Rxd2 {[%emt 0:04:14]} 28. Nxd2 {[%emt 0:00:12]} Nxc2 {[%emt 0:01:50]} 29. Nc4 {[%emt 0:02:02]} Rb8 {[%emt 0:02:14]} 30. Qc6 {[%emt 0:00:06]} Qb7 {[%emt 0:00:22]} 31. Qxc5 {[%emt 0:02:39]} Qxb3 {[%emt 0:00:40]} 32. Bf1 {[%emt 0:00:04]} Ne1 {[%emt 0:02:00]} 33. Bd4 {[%emt 0:01:51]} Nf3+ {[%emt 0:02:45]} 34. Kg2 {[%emt 0:00:26]} Ne1+ {[%emt 0:01:54]} 35. Kh2 {[%emt 0:00:41]} Qc2+ {[%emt 0:03:09]} 36. Bf2 {[%emt 0:01:20]} Nd3 {[%emt 0:01:37]} 37. Bxd3 {[%emt 0:00:24]} Qxd3 {[%emt 0:00:02]} 38. Nd6 {[%emt 0:00:58]} Rd8 {[%emt 0:02:58]} 39. e5 {[%emt 0:02:12]} fxe5 {[%emt 0:02:46]} 40. Nxf7 {[%emt 0:00:06]} Kxf7 {[%emt 0:00:05]} 41. Qxe5 {[%emt 0:30:05]} Kg8 {[%emt 0:30:13]} 42. h4 {[%emt 0:00:56]} h6 {[%emt 0:00:29]} 43. Qe6+ {[%emt 0:00:00]} Kh7 {[%emt 0:00:00]} 44. h5 {[%emt 0:00:00]} Rf8 {[%emt 0:00:00]} 45. Bg1 {[%emt 0:00:00]} Rf6 {[%emt 0:00:00]} 46. Qe3 {[%emt 0:00:00]} Qd5 {[%emt 0:00:00]} 47. Qe2 {[%emt 0:00:00]} Rf3 {[%emt 0:00:00]} 48. Qe8 {[%emt 0:00:00]} Qf5 {[%emt 0:00:00]} 49. Kg2 {[%emt 0:00:00]} Rc3 {[%emt 0:00:00]} 50. Be3 {[%emt 0:00:00]} Rc2+ {[%emt 0:00:00]} 51. Kg1 {[%emt 0:00:00]} Re2 {[%emt 0:00:00]} 52. Qg6+ {[%emt 0:00:00]} Qxg6 {[%emt 0:00:00]} 53. hxg6+ {[%emt 0:00:00]} Kxg6 {[%emt 0:00:00]} 54. Bd4 {[%emt 0:00:00]} h5 {[%emt 0:00:00]} 55. Kf1 {[%emt 0:00:00]} Ra2 {[%emt 0:00:00]} 56. Kg1 {[%emt 0:00:00]} Kf7 {[%emt 0:00:00]} 57. Be3 {[%emt 0:00:00]} Ke6 {[%emt 0:00:00]} 58. Kh1 {[%emt 0:00:00]} Kf5 {[%emt 0:00:00]} 59. Bd4 {[%emt 0:00:00]} g5 {[%emt 0:00:00]} 60. Bb6 {[%emt 0:00:00]} Kg4 {[%emt 0:00:00]} 61. Bc7 {[%emt 0:00:00]} Kh3 {[%emt 0:00:00]} 62. Kg1 {[%emt 0:00:00]} Rg2+ {[%emt 0:00:00]} 63. Kh1 {[%emt 0:00:00]} Rxg3 {[%emt 0:00:00]} 64. Bxg3 {[%emt 0:00:00]} Kxg3 {[%emt 0:00:00]} 65. Kg1 {[%emt 0:00:00]} h4 {[%emt 0:00:00]} 66. Kh1 {[%emt 0:00:00]} Kf3 {[%emt 0:00:00]} 67. Kh2 {[%emt 0:00:00]} g4 {[%emt 0:00:00]} 68. Kg1 {[%emt 0:00:00]} g3 {[%emt 0:00:00]} 69. Kf1 {[%emt 0:00:00]} h3 {[%emt 0:00:00]} 70. Kg1 {[%emt 0:00:00]} g2 {[%emt 0:00:00]} 0-1

[Event "WYCC U14 Open 2019"]
[Site "Mumbai"]
[Date "2019.10.12"]
[Round "11.14"]
[White "Luczak, Filip"]
[Black "Jain Kashish Manoj"]
[Result "0-1"]
[ECO "E71"]
[WhiteElo "2136"]
[BlackElo "1930"]
[Annotator "ChessBase"]
[PlyCount "109"]
[EventDate "2019.10.02"]
[EventType "swiss"]
[EventCountry "IND"]
[SourceTitle "playchess.com"]
[Source "ChessBase"]
[SourceQuality "1"]
[TimeControl "40/5400+30:1800+30"]

1. d4 {[%emt 0:00:00]} Nf6 {[%emt 0:00:00]} 2. c4 {[%emt 0:00:00]} g6 {[%emt 0:00:00]} 3. Nc3 {[%emt 0:00:00]} Bg7 {[%emt 0:00:04]} 4. e4 {[%emt 0:00:00]} d6 {[%emt 0:00:07]} 5. h3 {[%emt 0:00:02]} O-O {[%emt 0:00:17]} 6. Be3 {[%emt 0:00:04]} e5 {[%emt 0:00:58]} 7. d5 {[%emt 0:04:43]} a5 {[%emt 0:01:49]} 8. g4 {[%emt 0:00:59]} Na6 {[%emt 0:00:49]} 9. Nge2 {[%emt 0:00:18]} Nc5 {[%emt 0:00:34]} 10. Ng3 {[%emt 0:00:35]} Bd7 {[%emt 0:05:21]} 11. Be2 {[%emt 0:08:50]} c6 {[%emt 0:03:55]} 12. g5 {[%emt 0:08:44]} Ne8 {[%emt 0:00:17]} 13. Bg4 {[%emt 0:08:25]} cxd5 {[%emt 0:03:15]} 14. Nxd5 {[%emt 0:03:43]} Be6 {[%emt 0:07:56]} 15. O-O {[%emt 0:07:04]} Bxd5 {[%emt 0:24:16]} 16. Qxd5 {[%emt 0:08:47]} Nc7 {[%emt 0:01:01]} 17. Qd2 {[%emt 0:01:35]} Qe7 {[%emt 0:03:42]} 18. Rad1 {[%emt 0:02:08]} Rfd8 {[%emt 0:00:35]} 19. h4 {[%emt 0:04:12]} N7e6 {[%emt 0:01:07]} 20. Bxe6 {[%emt 0:02:43]} Nxe6 {[%emt 0:01:41]} 21. Ne2 {[%emt 0:04:32]} f5 {[%emt 0:05:58]} 22. exf5 {[%emt 0:08:21]} gxf5 {[%emt 0:00:14]} 23. f4 {[%emt 0:00:15]} Qe8 {[%emt 0:02:33]} 24. Qd5 {[%emt 0:03:22]} Kh8 {[%emt 0:00:53]} 25. Bb6 {[%emt 0:02:18]} Rdc8 {[%emt 0:02:05]} 26. fxe5 {[%emt 0:03:25]} Rc6 {[%emt 0:01:30]} 27. Be3 {[%emt 0:02:05]} dxe5 {[%emt 0:04:20]} 28. Nc3 {[%emt 0:03:58]} Qh5 {[%emt 0:02:11]} 29. Rd2 {[%emt 0:02:23]} Rf8 {[%emt 0:10:18]} 30. Rg2 {[%emt 0:05:34]} Qxh4 {[%emt 0:06:09]} 31. b3 {[%emt 0:01:45]} Rd8 {[%emt 0:04:49]} 32. Qxa5 {[%emt 0:00:35]} Qh3 {[%emt 0:00:18]} 33. Nd5 {[%emt 0:01:41]} Rxd5 {[%emt 0:01:53]} 34. cxd5 {[%emt 0:00:01]} Qxe3+ {[%emt 0:00:19]} 35. Kh2 {[%emt 0:00:34]} Ra6 {[%emt 0:01:11]} 36. Qb5 {[%emt 0:00:44]} Nf8 {[%emt 0:00:44]} 37. Rxf5 {[%emt 0:00:44]} Qe4 {[%emt 0:02:39]} 38. Qf1 {[%emt 0:01:29]} Qh4+ {[%emt 0:01:42]} 39. Kg1 {[%emt 0:00:04]} Qd4+ {[%emt 0:01:13]} 40. Rgf2 {[%emt 0:01:10]} Rxa2 {[%emt 0:00:41]} 41. Qc4 {[%emt 0:31:31]} Qe3 {[%emt 0:08:58]} 42. Qg4 {[%emt 0:00:00]} Ra1+ {[%emt 0:07:45]} 43. Kg2 {[%emt 0:00:00]} Qc1 {[%emt 0:02:05]} 44. Rf1 {[%emt 0:00:00]} Qd2+ {[%emt 0:00:34]} 45. R5f2 {[%emt 0:00:00]} Qxd5+ {[%emt 0:00:07]} 46. Qf3 {[%emt 0:00:00]} e4 {[%emt 0:03:27]} 47. Qf5 {[%emt 0:00:00]} Ra5 {[%emt 0:01:59]} 48. Qxd5 {[%emt 0:00:00]} Rxd5 {[%emt 0:00:01]} 49. Rf5 {[%emt 0:00:00]} Rd2+ {[%emt 0:00:55]} 50. R1f2 {[%emt 0:00:00]} e3 {[%emt 0:01:22]} 51. Rxd2 {[%emt 0:00:00]} exd2 {[%emt 0:00:04]} 52. Rd5 {[%emt 0:00:00]} Bc3 {[%emt 0:00:02]} 53. Kf3 {[%emt 0:00:00]} Ne6 54. Rd7 {[%emt 0:00:00]} Nd4+ {[%emt 0:00:49]} 55. Ke4 0-1

[Event "WYCC U14 Open 2019"]
[Site "Mumbai"]
[Date "2019.10.12"]
[Round "11.15"]
[White "Vignesh N R"]
[Black "Pham, Khoi"]
[Result "0-1"]
[ECO "B43"]
[WhiteElo "2475"]
[BlackElo "2121"]
[Annotator "ChessBase"]
[PlyCount "76"]
[EventDate "2019.10.02"]
[EventType "swiss"]
[EventCountry "IND"]
[SourceTitle "playchess.com"]
[Source "ChessBase"]
[SourceQuality "1"]
[TimeControl "40/5400+30:1800+30"]

1. e4 {[%emt 0:00:00]} c5 {[%emt 0:00:00]} 2. Nf3 {[%emt 0:00:00]} e6 {[%emt 0:00:00]} 3. d4 {[%emt 0:00:00]} cxd4 {[%emt 0:00:00]} 4. Nxd4 {[%emt 0:00:00]} a6 {[%emt 0:00:00]} 5. Nc3 {[%emt 0:00:14]} b5 {[%emt 0:00:27]} 6. Be2 {[%emt 0:02:19]} Bb7 {[%emt 0:01:01]} 7. Bf3 {[%emt 0:02:34]} Qc7 {[%emt 0:00:43]} 8. O-O {[%emt 0:09:24]} d6 {[%emt 0:02:07]} 9. a4 {[%emt 0:06:10]} bxa4 {[%emt 0:02:45]} 10. Rxa4 {[%emt 0:10:26]} Nf6 {[%emt 0:00:48]} 11. Qe2 {[%emt 0:09:48]} Nbd7 {[%emt 0:08:50]} 12. Nb3 {[%emt 0:11:15]} Be7 {[%emt 0:04:06]} 13. g3 {[%emt 0:05:17]} Rb8 {[%emt 0:13:01]} 14. Be3 {[%emt 0:04:44]} O-O {[%emt 0:05:50]} 15. Na5 {[%emt 0:13:11]} Ba8 {[%emt 0:05:50]} 16. Qxa6 {[%emt 0:02:37]} Ne5 {[%emt 0:02:04]} 17. Bg2 {[%emt 0:08:42]} Rxb2 {[%emt 0:03:59]} 18. Bd4 {[%emt 0:00:56]} Rxc2 {[%emt 0:08:14]} 19. Bxe5 {[%emt 0:02:47]} dxe5 {[%emt 0:00:46]} 20. Rc4 {[%emt 0:00:07]} Qd6 {[%emt 0:02:41]} 21. Qa7 {[%emt 0:01:12]} Rxc3 {[%emt 0:13:19]} 22. Rxc3 {[%emt 0:00:16]} Bxe4 {[%emt 0:00:18]} 23. Bxe4 {[%emt 0:07:41]} Nxe4 {[%emt 0:00:08]} 24. Re3 {[%emt 0:00:07]} Nd2 {[%emt 0:01:05]} 25. Ra1 {[%emt 0:02:01]} Bg5 {[%emt 0:00:32]} 26. Rc3 {[%emt 0:00:28]} e4 {[%emt 0:01:07]} 27. Qc5 {[%emt 0:00:39]} Nf3+ {[%emt 0:00:51]} 28. Kg2 {[%emt 0:00:18]} Qd2 {[%emt 0:01:22]} 29. Nc6 {[%emt 0:00:37]} g6 {[%emt 0:02:51]} 30. Rc2 {[%emt 0:00:24]} Qd5 {[%emt 0:01:55]} 31. Ra5 {[%emt 0:00:10]} Ne1+ {[%emt 0:00:09]} 32. Kf1 {[%emt 0:00:07]} Qd1 {[%emt 0:02:25]} 33. Qd4 {[%emt 0:01:23]} Nd3+ {[%emt 0:00:30]} 34. Kg2 {[%emt 0:00:19]} Qxc2 {[%emt 0:00:29]} 35. Ra6 {[%emt 0:00:12]} e3 {[%emt 0:00:42]} 36. h4 {[%emt 0:00:28]} Qxf2+ {[%emt 0:00:10]} 37. Kh3 {[%emt 0:00:04]} Qf1+ {[%emt 0:00:42]} 38. Kh2 {[%emt 0:00:05]} Nf2 {[%emt 0:00:18]} 0-1

[Event "WYCC U14 Open 2019"]
[Site "Mumbai"]
[Date "2019.10.12"]
[Round "11.16"]
[White "Aditya Varun Gampa"]
[Black "Pranav Anand"]
[Result "0-1"]
[ECO "B59"]
[WhiteElo "1879"]
[BlackElo "2351"]
[Annotator "ChessBase"]
[PlyCount "96"]
[EventDate "2019.10.02"]
[EventType "swiss"]
[EventCountry "IND"]
[SourceTitle "playchess.com"]
[Source "ChessBase"]
[SourceQuality "1"]
[TimeControl "40/5400+30:1800+30"]

1. e4 {[%emt 0:00:00]} c5 {[%emt 0:00:00]} 2. Nf3 {[%emt 0:00:23]} Nc6 {[%emt 0:00:00]} 3. d4 {[%emt 0:00:30]} cxd4 {[%emt 0:00:00]} 4. Nxd4 {[%emt 0:00:08]} Nf6 {[%emt 0:00:05]} 5. Nc3 {[%emt 0:00:09]} d6 {[%emt 0:00:05]} 6. Be2 {[%emt 0:04:39]} e5 {[%emt 0:00:14]} 7. Nb3 {[%emt 0:00:51]} Be7 {[%emt 0:00:09]} 8. Bg5 {[%emt 0:14:09]} Be6 {[%emt 0:08:17]} 9. Bxf6 {[%emt 0:01:11]} Bxf6 {[%emt 0:00:11]} 10. Nd5 {[%emt 0:00:23]} Bg5 {[%emt 0:00:43]} 11. g3 {[%emt 0:05:07]} O-O {[%emt 0:02:42]} 12. h4 {[%emt 0:00:42]} Bh6 {[%emt 0:01:03]} 13. g4 {[%emt 0:01:30]} f6 {[%emt 0:05:20]} 14. Bc4 {[%emt 0:04:04]} Kh8 {[%emt 0:05:25]} 15. Ne3 {[%emt 0:02:27]} Bxe3 {[%emt 0:08:30]} 16. Bxe6 {[%emt 0:00:04]} Bf4 {[%emt 0:00:12]} 17. c3 {[%emt 0:03:25]} Ne7 {[%emt 0:09:13]} 18. Qd3 {[%emt 0:07:55]} Qb6 {[%emt 0:01:23]} 19. Rd1 {[%emt 0:03:17]} Rfd8 {[%emt 0:00:33]} 20. Bd5 {[%emt 0:05:03]} a5 {[%emt 0:04:10]} 21. a4 {[%emt 0:02:51]} Nxd5 {[%emt 0:00:21]} 22. Qxd5 {[%emt 0:00:39]} Qc6 {[%emt 0:02:54]} 23. Rh3 {[%emt 0:10:57]} Qd7 {[%emt 0:19:33]} 24. Nc5 {[%emt 0:06:27]} Qxg4 {[%emt 0:02:28]} 25. Rhd3 {[%emt 0:01:31]} h5 {[%emt 0:02:45]} 26. Nxb7 {[%emt 0:03:37]} Rdb8 {[%emt 0:00:36]} 27. b3 {[%emt 0:00:37]} Qxh4 {[%emt 0:04:55]} 28. Nxd6 {[%emt 0:00:27]} Qg4 {[%emt 0:00:17]} 29. Nb5 {[%emt 0:06:33]} Rd8 {[%emt 0:03:12]} 30. Qf7 {[%emt 0:05:43]} Rxd3 {[%emt 0:07:33]} 31. Rxd3 {[%emt 0:00:02]} Bh6 {[%emt 0:00:32]} 32. Qd5 {[%emt 0:02:18]} Rf8 {[%emt 0:00:25]} 33. Rg3 {[%emt 0:02:37]} Qf4 {[%emt 0:00:36]} 34. Nd6 {[%emt 0:00:02]} h4 {[%emt 0:01:36]} 35. Rd3 {[%emt 0:00:38]} Qg4 {[%emt 0:04:28]} 36. Kf1 {[%emt 0:01:29]} h3 {[%emt 0:01:47]} 37. Rg3 {[%emt 0:00:26]} Qh5 {[%emt 0:00:22]} 38. Kg1 {[%emt 0:00:35]} Bf4 {[%emt 0:00:33]} 39. Kh2 {[%emt 0:05:07]} Qf3 {[%emt 0:02:55]} 40. Kxh3 {[%emt 0:00:54]} Qxf2 {[%emt 0:01:54]} 41. Nf5 {[%emt 0:02:46]} Bxg3 {[%emt 0:01:24]} 42. Nxg3 {[%emt 0:00:21]} Qf3 {[%emt 0:02:24]} 43. Qxa5 {[%emt 0:02:30]} Kh7 {[%emt 0:00:16]} 44. Qd5 {[%emt 0:07:34]} Kg6 {[%emt 0:00:26]} 45. Kh2 {[%emt 0:00:10]} Rh8+ {[%emt 0:00:05]} 46. Kg1 {[%emt 0:00:02]} Qxg3+ {[%emt 0:00:07]} 47. Kf1 {[%emt 0:00:01]} Rh1+ {[%emt 0:00:11]} 48. Ke2 {[%emt 0:00:01]} Rh2+ {[%emt 0:00:06]} 0-1